bitfinex-derivatives/quotes_ETHF0:USTF0_20250130
["timestamp","ask_amount","ask_price","bid_price","bid_amount"]
[1738277727499,0.61218,3266.8,3266.7,0.61219]
[1738277731004,0.00459551,3266.9,3266.5,3.2078]
[1738277731303,0.61222,3266.6,3266.5,3.2078]
[1738277731607,0.61224,3266.5,3266.4,0.5318]
[1738277732197,4.74284551,3266.9,3266.2,0.61687551]
[1738277732499,0.61227,3266.3,3266.2,0.00459551]
[1738277733709,0.61227,3266.3,3266.2,0.61688551]
[1738277734799,0.61227,3266.3,3266.2,0.00459551]
[1738277735602,0.61227,3266.3,3266.2,0.61688551]
[1738277740917,0.61227,3266.3,3266.2,0.00459551]
[1738277750922,0.4875,3266.4,3266.2,0.00459551]
[1738277751221,1.09976,3266.4,3266.3,0.61227]
[1738277753018,0.61227,3266.3,3266.2,0.61687551]
[1738277754820,0.61227,3266.3,3266.2,0.00459551]
[1738277755415,3.82007,3266.3,3266.2,0.00459551]
[1738277755711,11.43381025,3266.3,3266.2,0.00459551]
[1738277755917,0.61241,3265.6,3265.5,0.61241]
[1738277756220,0.6124,3265.7,3265.6,0.6124]
[1738277756417,1.53086,3266.0,3265.4,0.5019]
[1738277756619,0.61242,3265.5,3265.4,0.5019]
[1738277764928,0.5315,3265.5,3265.2,0.5309]
[1738277765124,0.61246,3265.3,3265.2,0.5309]
[1738277765723,0.61246,3265.3,3265.1,1.10077551]
[1738277766224,0.61246,3265.3,3265.2,0.61248]
[1738277766423,0.5315,3265.5,3265.1,0.48829551]
[1738277766424,0.61248,3265.2,3265.1,0.48829551]
[1738277766821,0.61248,3265.2,3265.1,0.00459551]
[1738277776639,1.85157783,3265.2,3265.1,0.00459551]
[1738277787539,8.09067566,3265.2,3265.1,1e-08]
[1738277787846,0.61263,3264.4,3264.3,0.5018]
[1738277788045,1.85172783,3264.4,3264.3,0.5018]
[1738277788248,1.85172783,3264.4,3264.2,0.5271]
[1738277788249,1.23909783,3264.4,3264.2,0.5271]
[1738277788440,0.61265,3264.3,3264.2,0.5271]
[1738277798152,3.68134,3266.0,3265.5,0.61242]
[1738277798353,3.2078,3265.6,3264.7,3.2078]
[1738277798547,3.2078,3266.5,3265.5,0.5229]
[1738277798750,3.2078,3266.5,3265.6,0.5105]
[1738277798953,3.82004,3266.5,3265.9,0.61234]
[1738277799350,0.61227,3266.4,3265.9,0.61693551]
[1738277800059,1.23909783,3266.0,3265.9,0.61693551]
[1738277800557,2.61632943,3266.2,3265.9,0.61693551]
[1738277803255,0.61228,3266.3,3265.9,0.61693551]
[1738277804560,6.79772494,3266.5,3265.9,0.61693551]
[1738277804561,0.61227,3266.4,3265.9,0.61693551]
[1738277806960,2.62092494,3266.5,3266.3,3.2078]
[1738277807149,0.00459551,3266.5,3266.4,1.0185]
[1738277807349,2.61632943,3267.1,3266.4,1.0185]
[1738277807554,2.61632943,3267.1,3266.9,3.81995]
[1738277808059,2.61632943,3267.1,3267.0,0.5013]
[1738277808258,2.61632943,3267.1,3266.9,3.2078]
[1738277808453,0.61214,3267.0,3266.9,3.2078]
[1738277808652,1.10414,3267.0,3266.9,3.2078]
[1738277809156,0.61214,3267.0,3266.9,3.2078]
[1738277809462,0.00459551,3267.4,3266.9,3.2078]
[1738277809463,2.62092494,3267.4,3266.9,3.2078]
[1738277809664,2.62092494,3267.4,3267.1,0.61212]
[1738277809858,2.62092494,3267.4,3267.1,0.61211]
[1738277810062,0.00459551,3267.4,3267.0,0.4922]
[1738277810255,0.00459551,3267.4,3267.3,0.61209]
[1738277810563,0.00459551,3267.4,3267.2,0.6121]
[1738277812164,0.00459551,3267.4,3267.1,0.5202]
[1738277812363,0.00459551,3267.4,3267.2,0.6121]
[1738277813363,0.00459551,3267.4,3267.2,0.61209]
[1738277813863,0.00459551,3267.4,3267.3,0.61209]
[1738277816461,0.00459551,3267.4,3267.3,3.81989]
[1738277819564,0.00459551,3267.4,3267.3,0.61209]
[1738277822167,0.00459551,3267.4,3267.1,0.5202]
[1738277822468,0.00459551,3267.4,3267.2,0.6121]
[1738277823263,0.00459551,3267.4,3267.1,0.5202]
[1738277823468,0.00459551,3267.4,3267.3,0.61209]
[1738277828766,0.00459551,3267.4,3267.3,3.81989]
[1738277834264,0.00459551,3267.4,3267.1,0.5202]
[1738277834468,0.00459551,3267.4,3267.1,1.13232]
[1738277834469,0.61211,3267.2,3267.1,1.13232]
[1738277834669,0.61211,3267.2,3267.1,0.5202]
[1738277835075,0.61212,3267.1,3267.0,1.10433]
[1738277836472,0.61212,3267.1,3267.0,0.4922]
[1738277836672,0.61214,3267.0,3266.9,3.2078]
[1738277837774,0.61214,3267.0,3266.9,3.81996]
[1738277837974,1.53481551,3267.4,3266.9,3.2078]
[1738277838178,1.53481551,3267.4,3266.9,3.81995]
[1738277838374,0.61214,3267.1,3266.9,3.81995]
[1738277839269,0.00459551,3267.4,3266.9,3.81995]
[1738277839468,0.61209,3267.3,3266.9,3.81996]
[1738277839669,2.62092494,3267.4,3266.9,3.81996]
[1738277839875,0.61212,3267.2,3266.9,3.81996]
[1738277840075,2.62092494,3267.4,3266.9,3.2078]
[1738277840377,0.61215,3267.0,3266.7,0.6122]
[1738277840569,0.5172,3266.9,3266.6,1.11701]
[1738277840771,1.0508,3266.9,3266.7,0.61218]
[1738277841475,0.61222,3266.6,3266.4,0.61225]
[1738277841677,0.5146,3266.5,3266.4,0.61225]
[1738277841874,0.5146,3266.5,3266.3,3.82006]
[1738277842072,1.12684,3266.5,3266.3,3.82006]
[1738277842478,0.5146,3266.5,3266.3,3.2078]
[1738277842680,0.61226,3266.4,3265.9,1.03359551]
[1738277842881,0.61226,3266.4,3266.1,0.6123]
[1738277843081,0.5146,3266.5,3266.1,0.6123]
[1738277843379,0.5211,3266.3,3266.0,0.61232]
[1738277843580,0.511,3266.2,3266.0,0.61232]
[1738277844375,3.82012,3266.1,3265.9,0.00459551]
[1738277844981,0.61233,3266.0,3265.9,0.00459551]
[1738277852383,6.33512943,3266.2,3265.9,0.00459551]
[1738277852578,0.61232,3266.1,3265.9,0.00459551]
[1738277854784,0.61233,3266.0,3265.9,0.00459551]
[1738277856476,1.12123,3266.0,3265.9,0.00459551]
[1738277857982,2.09023,3266.0,3265.9,0.00459551]
[1738277858183,1.12123,3266.0,3265.9,0.00459551]
[1738277858488,2.09023,3266.0,3265.9,0.00459551]
[1738277859285,7.09023,3266.0,3265.9,0.00459551]
[1738277860283,7.09023,3266.0,3265.0,0.5093]
[1738277860284,0.6125,3265.1,3265.0,0.5093]
[1738277860687,0.61256,3264.8,3264.7,0.4946]
[1738277860984,3.13622943,3265.2,3264.7,0.4946]
[1738277861182,0.61254,3264.9,3264.7,0.4946]
[1738277861383,0.61254,3264.9,3264.7,1.10717]
[1738277863386,0.61254,3264.9,3264.7,0.4946]
[1738277864280,2.61632943,3264.9,3264.7,0.4946]
[1738277864486,0.61256,3264.8,3264.7,0.4946]
[1738277865995,5.82412943,3264.9,3264.6,0.00459551]
[1738277865996,0.61257,3264.7,3264.6,0.00459551]
[1738277877316,1.58157,3264.7,3264.6,0.00459551]
[1738277886116,1.58157,3264.7,3264.6,1e-08]
[1738277888223,0.61261,3264.5,3264.4,0.4873]
[1738277888423,6.43673943,3264.5,3264.4,0.4873]
[1738277888626,5.06025164,3264.5,3264.4,0.4873]
[1738277890127,1.85245164,3264.5,3264.4,0.4873]
[1738277890328,5.06025164,3264.5,3264.4,0.4873]
[1738277890921,1.53136,3264.9,3264.4,0.4873]
[1738277890922,1.23984164,3264.7,3264.6,0.61259]
[1738277891125,3.2078,3264.9,3264.7,0.61256]
[1738277891326,1.23984164,3264.8,3264.7,0.61256]
[1738277892627,3.2078,3264.9,3264.7,0.61256]
[1738277894027,3.2078,3264.9,3264.8,0.5079]
[1738277894527,3.2078,3264.9,3264.8,1.0332]
[1738277894929,3.23049596,3265.0,3264.8,1.0332]
[1738277895328,3.23049596,3265.0,3264.9,0.4863]
[1738277904632,5.83037147,3265.3,3264.9,0.4863]
[1738277904841,0.61252,3265.0,3264.9,0.4863]
[1738277909943,0.61255,3264.9,3264.7,3.2078]
[1738277912444,0.61255,3264.9,3264.6,1.0152]
[1738277912748,1.23926349,3264.7,3264.6,1.0152]
[1738277913045,1.23926349,3264.7,3264.6,0.5143]
[1738277913243,0.61263,3264.4,3264.3,3.7407]
[1738277913541,1.85189349,3264.4,3264.3,3.2078]
[1738277915046,0.61263,3264.4,3264.3,3.82045]
[1738277915244,0.61263,3264.4,3264.3,3.2078]
[1738277915434,1.85189349,3264.4,3264.3,3.2078]
[1738277916043,1.85189349,3264.4,3264.2,1.12126]
[1738277916243,1.85189349,3264.4,3264.3,0.61265]
[1738277916632,1.85189349,3264.4,3264.2,0.5086]
[1738277916633,1.85189349,3264.4,3264.2,1.12125]
[1738277916945,1.85189349,3264.4,3264.2,0.5086]
[1738277917245,1.85189349,3264.4,3264.2,1.12125]
[1738277917643,1.23926349,3264.4,3264.3,0.61265]
[1738277917947,0.61264,3264.4,3264.2,0.5086]
[1738277918244,1.85190349,3264.4,3264.3,0.61265]
[1738277919347,1.23926349,3264.4,3264.3,0.61265]
[1738277920748,2.27486349,3264.6,3264.5,0.61261]
[1738277920946,1.23926349,3264.6,3264.5,0.61261]
[1738277921944,0.4989,3265.0,3264.3,3.2078]
[1738277921945,1.23926349,3265.0,3264.9,0.61254]
[1738277922749,1.0504,3265.2,3264.7,3.7434]
[1738277922750,1.23926349,3265.2,3264.7,3.7434]
[1738277922950,1.23926349,3265.2,3265.1,0.6125]
[1738277923140,1.23926349,3265.2,3265.0,0.61251]
[1738277923452,1.23926349,3265.1,3265.0,0.61251]
[1738277930258,1.23926349,3265.1,3264.8,0.61254]
[1738277930554,0.61256,3264.8,3264.7,3.2078]
[1738277930755,1.23926349,3264.8,3264.5,0.61261]
[1738277930949,0.61259,3264.6,3264.5,0.61261]
[1738277931350,1.14809,3264.7,3264.5,0.61261]
[1738277933155,0.5355,3264.7,3264.5,0.61261]
[1738277934647,0.5355,3264.7,3264.6,0.61259]
[1738277936051,5.27477,3264.7,3264.1,0.00459551]
[1738277936257,1.85193349,3264.2,3264.1,0.00459551]
[1738277936655,2.61960174,3264.2,3263.4,3.2078]
[1738277936851,0.61277,3263.7,3263.4,3.82061]
[1738277937058,0.4954,3263.6,3263.4,3.82061]
[1738277937262,1.10818,3263.6,3263.4,3.2078]
[1738277937754,0.6128,3263.5,3263.4,3.2078]
[1738277937950,1.101,3263.5,3263.4,3.2078]
[1738277938155,3.72060174,3263.5,3263.4,3.2078]
[1738277939162,3.10780174,3263.5,3263.2,0.00459551]
[1738277939348,0.61284,3263.3,3263.2,0.00459551]
[1738277940156,0.4961,3263.4,3262.5,3.2078]
[1738277940358,0.61301,3262.4,3262.1,3.82085]
[1738277940565,1.53227,3263.0,3262.0,0.986]
[1738277940566,0.61303,3262.3,3262.0,0.61307]
[1738277940754,0.61305,3262.2,3261.9,0.61309]
[1738277941254,0.61307,3262.1,3261.8,0.61311]
[1738277941454,2.61960174,3262.2,3261.8,0.6131]
[1738277941755,2.61960174,3262.2,3261.7,7.4239477]
[1738277941756,0.6131,3261.9,3261.7,7.4239477]
[1738277942153,0.5154,3262.1,3261.7,7.4239477]
[1738277942352,0.61312,3261.8,3261.7,0.00459551]
[1738277943353,1.12382,3261.8,3261.7,0.00459551]
[1738277946158,3.74342174,3261.8,3261.7,0.00459551]
[1738277946362,0.61322,3261.3,3260.9,3.2078]
[1738277946659,2.61960174,3261.1,3260.9,3.2078]
[1738277946856,2.61960174,3261.1,3260.9,3.82109]
[1738277947358,0.5165,3261.0,3260.9,3.82109]
[1738277947555,0.5165,3261.0,3260.9,0.61329]
[1738277948263,0.00459551,3261.3,3260.9,8.2078]
[1738277948457,0.00459551,3261.3,3261.2,0.61323]
[1738277949557,0.00459551,3261.3,3261.2,5.61323]
[1738277950156,5.51e-06,3261.3,3261.2,5.61323]
[1738277950556,2.61960174,3262.6,3262.5,0.61299]
[1738277950751,2.61960174,3262.6,3261.3,1.53302]
[1738277950752,1.0249,3263.1,3262.4,3.2078]
[1738277950958,1.53181,3264.0,3262.8,3.2078]
[1738277950959,2.61960174,3263.5,3262.8,3.2078]
[1738277951256,2.61960174,3263.5,3263.4,0.61281]
[1738277951454,2.61960174,3263.8,3263.7,0.61276]
[1738277951655,2.61960174,3264.1,3263.6,3.2078]
[1738277951862,0.00459551,3263.7,3263.6,3.82058]
[1738277957264,0.00459551,3263.7,3263.6,8.82058]
[1738277958563,0.00459551,3263.7,3263.6,3.82058]
[1738277959162,0.00459551,3263.7,3263.6,8.82058]
[1738277961473,0.00459551,3263.7,3263.6,3.82058]
[1738277975769,0.5071,3264.1,3263.6,3.82058]
[1738277975977,0.5071,3264.1,3264.0,3.8205]
[1738277979685,0.5071,3264.1,3264.0,0.6127]
[1738277979986,0.5071,3264.1,3264.0,3.8205]
[1738277983483,0.5071,3264.1,3264.0,0.6127]
[1738277985581,0.5071,3264.1,3263.6,3.2078]
[1738277985780,3.23235174,3263.8,3263.7,0.61276]
[1738277986690,0.61278,3263.7,3263.6,0.61277]
[1738277987690,3.23236174,3263.8,3263.7,0.61276]
[1738277988392,2.61960174,3263.8,3263.7,0.61276]
[1738277991591,2.61960174,3263.8,3263.2,3.2078]
[1738277991795,3.23244174,3263.3,3263.0,0.61748551]
[1738277991989,1.0351,3263.2,3263.0,0.61748551]
[1738277992293,1.64796,3263.2,3263.0,0.00459551]
[1738277992995,0.61287,3263.1,3263.0,0.00459551]
[1738277997895,1.0351,3263.2,3262.6,0.61295]
[1738277998103,2.61960174,3262.7,3262.6,0.61295]
[1738277998897,2.61960174,3263.6,3263.5,0.61278]
[1738277999299,3.2078,3263.8,3263.7,0.61276]
[1738278000193,3.14740174,3263.9,3263.8,0.61274]
[1738278000399,2.61960174,3264.2,3264.1,0.61269]
[1738278000603,2.61960174,3264.2,3263.3,4.07438]
[1738278000604,0.00459551,3264.4,3264.3,0.61265]
[1738278003705,0.00459551,3264.4,3264.2,0.5294]
[1738278004101,0.00459551,3264.4,3264.3,0.61265]
[1738278004803,0.00459551,3264.4,3264.2,1.14206]
[1738278006003,0.61722551,3264.4,3264.2,1.14206]
[1738278006403,0.61722551,3264.4,3264.2,0.61266]
[1738278006906,0.61722551,3264.4,3264.1,1.12898]
[1738278007606,0.61722551,3264.4,3264.2,0.61265]
[1738278007607,0.61723551,3264.4,3264.2,0.61265]
[1738278007805,0.00459551,3264.4,3264.1,0.5163]
[1738278008000,0.00459551,3264.4,3264.3,0.61265]
[1738278010902,2.61960174,3265.1,3264.3,5.0]
[1738278011109,2.61960174,3265.1,3265.0,0.61252]
[1738278011908,2.61960174,3265.1,3264.7,3.2078]
[1738278012118,2.61960174,3265.1,3264.9,0.61252]
[1738278013516,2.61960174,3265.1,3264.4,0.5106]
[1738278013517,3.2078,3265.0,3264.4,1.12322]
[1738278013718,2.61960174,3264.8,3264.4,0.5106]
[1738278013913,0.61264,3264.4,3264.2,3.82046]
[1738278014120,0.61264,3264.4,3264.2,3.2078]
[1738278014320,0.61265,3264.3,3264.2,3.2078]
[1738278014717,0.61267,3264.2,3264.0,0.00459551]
[1738278014921,5.82740174,3264.2,3264.0,0.00459551]
[1738278015226,1.66009,3264.1,3264.0,0.00459551]
[1738278015521,1.0474,3264.1,3263.0,3.2078]
[1738278015729,0.61285,3263.3,3263.0,3.82068]
[1738278016020,0.61285,3263.3,3263.1,0.61287]
[1738278018231,2.62419725,3263.5,3263.1,0.61287]
[1738278018433,0.61285,3263.2,3263.1,0.61287]
[1738278019028,0.61285,3263.2,3263.0,3.2078]
[1738278019029,2.62419725,3263.5,3263.0,3.2078]
[1738278019230,0.61287,3263.1,3263.0,3.82068]
[1738278020531,0.61287,3263.2,3263.1,0.61285]
[1738278022536,0.61282,3263.4,3263.3,0.61283]
[1738278026436,3.13179725,3263.5,3263.0,3.2078]
[1738278026635,3.23247174,3263.2,3263.0,3.2078]
[1738278026836,0.61287,3263.1,3263.0,3.82068]
[1738278027940,1.09627,3263.1,3263.0,3.2078]
[1738278028140,1.09627,3263.1,3263.0,3.82069]
[1738278029235,1.09627,3263.1,3263.0,0.61289]
[1738278030940,0.4834,3263.1,3263.0,0.61289]
[1738278033343,2.61960174,3263.2,3262.9,0.00459551]
[1738278033542,3.2078,3263.4,3263.3,0.61284]
[1738278035050,3.13179725,3263.5,3263.4,0.61282]
[1738278035753,3.74459725,3263.5,3263.4,0.61282]
[1738278036049,3.74459725,3263.5,3263.3,0.61282]
[1738278037046,3.74459725,3263.5,3263.4,0.61282]
[1738278037246,3.13179725,3263.5,3263.4,0.61282]
[1738278041751,3.13179725,3263.5,3263.4,3.82062]
[1738278041955,0.00459551,3263.5,3263.4,3.82062]
[1738278042546,5.82740174,3264.4,3264.3,0.61265]
[1738278042753,3.2078,3264.4,3264.3,0.61265]
[1738278043158,5.82740174,3265.3,3264.3,8.2078]
[1738278043449,5.82740174,3265.3,3265.2,0.61248]
[1738278043953,5.82740174,3265.3,3265.1,0.61248]
[1738278044546,5.82740174,3265.3,3264.9,0.00459551]
[1738278044752,6.43987174,3265.3,3265.0,0.6125]
[1738278045153,0.61248,3265.2,3265.0,0.6125]
[1738278045352,5.82740174,3265.3,3264.9,0.61712551]
[1738278045554,2.61960174,3265.0,3264.9,0.61712551]
[1738278046956,3.23212174,3265.0,3264.9,0.00459551]
[1738278052650,7.61960174,3265.0,3264.0,0.6127]
[1738278052850,2.61960174,3264.3,3264.0,0.6127]
[1738278053256,2.61960174,3264.3,3263.9,0.61272]
[1738278053455,0.61269,3264.1,3263.8,3.82052]
[1738278054056,0.61272,3263.9,3263.7,0.61276]
[1738278054261,2.61960174,3264.0,3263.6,0.00459551]
[1738278054457,3.23226174,3264.3,3264.0,0.6127]
[1738278054658,2.61960174,3264.3,3264.1,0.61268]
[1738278055057,0.61271,3264.0,3263.7,0.61275]
[1738278055257,3.2078,3264.2,3263.6,0.00459551]
[1738278055563,3.12560174,3264.3,3263.6,0.00459551]
[1738278055861,0.61267,3264.2,3264.0,0.6127]
[1738278056061,2.61960174,3264.3,3264.1,0.61267]
[1738278056564,3.23225174,3264.3,3264.0,0.61269]
[1738278056762,3.23225174,3264.3,3263.6,0.61736551]
[1738278056763,3.2078,3264.2,3263.6,0.61736551]
[1738278056958,2.61960174,3263.9,3263.6,0.00459551]
[1738278057163,0.61276,3263.7,3263.6,0.00459551]
[1738278057964,2.61960174,3263.9,3263.6,0.00459551]
[1738278058257,6.83640174,3264.2,3263.6,0.00459551]
[1738278058462,6.83640174,3264.2,3264.0,0.6127]
[1738278058666,7.44907174,3264.2,3264.0,0.6127]
[1738278059372,6.83640174,3264.2,3263.6,0.00459551]
[1738278059564,0.61276,3263.7,3263.6,0.00459551]
[1738278060658,1.11466,3263.7,3263.6,0.00459551]
[1738278061768,1.53198,3263.6,3262.9,3.2078]
[1738278062068,0.61288,3263.1,3262.9,3.82071]
[1738278062866,3.2078,3265.1,3263.0,5.23920348]
[1738278063064,5.82740174,3265.5,3265.0,3.2078]
[1738278063263,3.2078,3266.0,3265.4,0.61244]
[1738278063459,3.2078,3266.0,3265.7,0.61237]
[1738278063460,2.61960174,3265.8,3265.7,0.61237]
[1738278063763,3.2078,3266.0,3265.9,0.61235]
[1738278063967,0.61229,3266.2,3265.5,3.2078]
[1738278064167,3.23189174,3266.2,3265.6,0.00459551]
[1738278064371,3.23189174,3266.2,3266.0,0.61232]
[1738278064372,2.61960174,3266.2,3266.0,0.61232]
[1738278065066,2.61960174,3266.2,3266.1,0.61231]
[1738278066666,0.99369551,3266.3,3265.6,0.00459551]
[1738278067758,0.99369551,3266.3,3266.2,0.61229]
[1738278070858,0.00459551,3266.3,3266.2,0.61229]
[1738278071061,5.51e-06,3266.3,3266.2,8.82009]
[1738278072178,5.51e-06,3266.3,3266.2,9.80109]
[1738278073075,3.2078,3267.5,3266.2,9.1888]
[1738278073264,3.2078,3267.5,3267.4,0.61207]
[1738278073574,0.4851,3267.9,3267.7,0.612]
[1738278073770,0.4851,3267.9,3267.1,3.2078]
[1738278074070,0.4851,3267.9,3267.6,0.61202]
[1738278074379,0.00459551,3267.8,3267.6,0.61202]
[1738278074562,0.00459551,3267.8,3267.5,3.81984]
[1738278074761,0.00459551,3267.8,3267.5,3.2078]
[1738278075159,3.2078,3267.6,3266.7,3.2078]
[1738278075358,3.2078,3267.2,3266.1,3.2078]
[1738278075561,0.61224,3266.5,3266.1,3.2078]
[1738278075969,3.2078,3266.8,3266.1,3.2078]
[1738278076175,0.61229,3266.3,3266.1,3.2078]
[1738278076473,0.61226,3266.4,3266.1,3.21239551]
[1738278077666,0.5066,3266.7,3266.1,3.21239551]
[1738278077667,0.61222,3266.6,3266.1,3.21239551]
[1738278077868,0.61227,3266.4,3266.1,3.21239551]
[1738278078774,3.17005411,3266.5,3266.1,3.21239551]
[1738278079167,0.61228,3266.3,3266.1,3.21239551]
[1738278080476,0.61226,3266.4,3266.1,3.21239551]
[1738278081276,3.17005411,3266.5,3266.2,0.61229]
[1738278081277,3.78230411,3266.5,3266.2,0.61229]
[1738278081577,3.78230411,3266.5,3266.1,3.21239551]
[1738278081778,3.78229411,3266.5,3266.1,3.82470551]
[1738278082678,0.61227,3266.4,3266.1,3.21239551]
[1738278085382,0.61228,3266.3,3266.1,3.21239551]
[1738278085678,3.17005411,3266.5,3266.1,0.00459551]
[1738278086080,0.00187354,3266.3,3266.2,0.61229]
[1738278086282,1.01,3267.5,3266.1,8.21239551]
[1738278086576,2.61340802,3267.7,3267.6,0.61203]
[1738278086985,2.61340802,3267.7,3267.3,3.2078]
[1738278087178,2.61340802,3267.7,3267.6,0.61203]
[1738278088586,3.81978,3267.9,3267.6,0.61203]
[1738278088884,3.81978,3267.9,3267.5,0.61204]
[1738278088885,0.61658551,3267.8,3267.5,0.61204]
[1738278089076,0.61658551,3267.8,3267.6,0.61203]
[1738278089077,0.00459551,3267.8,3267.6,0.61203]
[1738278089678,0.00459551,3267.8,3267.4,0.61207]
[1738278089879,0.00459551,3267.8,3267.6,0.61201]
[1738278090089,0.00459551,3267.8,3267.7,0.61201]
[1738278090476,0.00459551,3267.8,3267.7,3.81981]
[1738278095389,0.00459551,3267.8,3267.7,8.81981]
[1738278095581,3.16690215,3268.8,3267.9,1.5299]
[1738278095782,3.65410215,3269.2,3268.4,3.2078]
[1738278095985,0.61178,3269.0,3268.8,0.6118]
[1738278096182,0.61175,3269.1,3268.8,0.6118]
[1738278096987,0.61177,3269.1,3268.6,0.00459551]
[1738278097185,0.61176,3269.1,3268.8,0.6118]
[1738278097489,0.61177,3269.0,3268.7,0.61182]
[1738278099084,0.61176,3269.1,3268.8,0.6118]
[1738278099291,0.61178,3269.0,3268.7,0.61182]
[1738278099786,0.61176,3269.1,3268.8,0.61179]
[1738278100381,0.61175,3269.1,3268.8,0.61179]
[1738278100795,0.61175,3269.1,3268.7,0.61182]
[1738278100993,0.61175,3269.1,3268.8,0.6118]
[1738278101587,4.26584215,3269.2,3268.9,0.61178]
[1738278101892,3.65410215,3269.2,3269.0,0.61175]
[1738278102091,0.48979551,3269.3,3269.0,3.2078]
[1738278102293,0.48979551,3269.3,3269.2,0.61173]
[1738278102492,0.00459551,3269.3,3269.2,0.61173]
[1738278103294,3.16690215,3270.4,3269.6,0.61166]
[1738278103494,0.61151,3270.4,3270.2,0.61154]
[1738278103691,4.17450215,3270.9,3269.9,3.2078]
[1738278104088,0.61143,3270.8,3270.3,0.61152]
[1738278104399,0.61149,3270.5,3270.2,0.61153]
[1738278104595,0.61149,3270.5,3270.2,0.61611842]
[1738278105097,6.37470215,3270.4,3269.4,3.2078]
[1738278105298,0.61169,3269.5,3269.2,0.61173]
[1738278105589,3.16690215,3269.6,3269.2,0.61173]
[1738278105792,0.61169,3269.5,3269.2,0.61172]
[1738278105996,0.61169,3269.5,3269.3,0.61171]
[1738278106392,0.61167,3269.5,3269.2,0.61173]
[1738278106590,0.61173,3269.2,3269.1,0.00458842]
[1738278110187,3.16690215,3269.2,3267.8,3.2078]
[1738278110396,0.61194,3268.1,3267.9,0.61197]
[1738278110793,0.61194,3268.1,3268.0,0.61196]
[1738278111000,3.2078,3268.5,3267.9,0.61197]
[1738278111303,0.61196,3268.0,3267.9,0.61654842]
[1738278111698,0.61196,3268.0,3267.9,0.00458842]
[1738278112901,0.61196,3268.0,3267.9,0.61655842]
[1738278113302,1.11555,3268.1,3268.0,0.61196]
[1738278113602,1.11555,3268.1,3267.9,0.61655842]
[1738278114003,1.11555,3268.1,3267.9,0.00458842]
[1738278114201,0.61196,3268.0,3267.9,0.00458842]
[1738278114403,1.11554,3268.1,3267.9,0.00458842]
[1738278114601,0.61196,3268.0,3267.9,0.00458842]
[1738278115000,1.11555,3268.1,3267.9,0.00458842]
[1738278115605,0.5036,3268.1,3267.9,0.00458842]
[1738278116005,3.16690215,3268.2,3267.9,0.00458842]
[1738278116306,3.16690215,3268.2,3267.9,0.61654842]
[1738278116806,3.16690215,3268.2,3268.0,0.61195]
[1738278117008,3.16690215,3268.2,3267.9,0.00458842]
[1738278117307,0.6119,3268.3,3267.9,0.61654842]
[1738278117704,0.61192,3268.2,3267.9,0.61654842]
[1738278118306,0.61191,3268.3,3268.0,0.61195]
[1738278118502,0.6119,3268.3,3267.9,0.61655842]
[1738278118908,0.61192,3268.2,3267.9,0.61655842]
[1738278119208,0.61191,3268.3,3267.9,0.61655842]
[1738278119416,0.61193,3268.2,3267.9,0.61655842]
[1738278119799,0.61193,3268.2,3267.9,0.00458842]
[1738278120811,0.61194,3268.1,3267.9,0.00458842]
[1738278121612,0.61196,3268.0,3267.9,0.00458842]
[1738278122499,2.61357979,3268.0,3267.0,3.7351]
[1738278122703,0.61206,3267.5,3267.2,0.6121]
[1738278122904,0.61207,3267.4,3267.2,0.6121]
[1738278123812,0.61207,3267.4,3267.0,3.7351]
[1738278124010,0.61205,3267.5,3267.2,0.61209]
[1738278124212,0.61206,3267.5,3267.4,0.61207]
[1738278125009,0.61209,3267.4,3267.3,0.61208]
[1738278125209,0.6121,3267.3,3267.2,0.61209]
[1738278127320,3.16645973,3267.4,3266.8,3.81805886]
[1738278127512,0.61216,3267.0,3266.9,0.61214]
[1738278129712,0.61214,3267.1,3266.9,0.61214]
[1738278129914,0.61215,3267.0,3266.9,0.61216]
[1738278130320,4.69666973,3267.4,3266.6,3.2078]
[1738278130517,0.61214,3267.1,3267.0,0.61214]
[1738278130718,0.61214,3267.0,3266.9,0.61215]
[1738278130916,0.61213,3267.1,3267.0,0.61212]
[1738278131918,3.77852973,3267.4,3267.3,0.61209]
[1738278135128,0.61211,3267.3,3267.2,0.61209]
[1738278135531,3.16645973,3267.4,3266.6,3.2078]
[1738278135824,3.16645973,3267.4,3265.3,3.06231]
[1738278135825,3.2078,3266.8,3265.9,0.5031]
[1738278136033,3.16645973,3266.1,3265.7,3.2078]
[1738278136221,3.16645973,3266.1,3265.3,3.2078]
[1738278136422,0.6124,3265.7,3265.5,0.61241]
[1738278136633,3.77884973,3265.7,3265.1,1.53126]
[1738278136933,3.16645973,3265.7,3265.6,0.61241]
[1738278137837,3.2078,3266.4,3265.3,3.2078]
[1738278138133,3.2078,3266.4,3266.3,0.61227]
[1738278138625,3.82006,3266.4,3265.8,0.4875]
[1738278138835,1.53079,3266.1,3265.3,3.2078]
[1738278139127,3.77884973,3265.8,3265.4,0.61244]
[1738278139321,3.2078,3266.4,3266.1,0.61231]
[1738278139524,3.2078,3266.4,3266.3,0.61227]
[1738278139725,3.2078,3266.4,3265.8,0.4875]
[1738278140030,0.61241,3265.6,3265.4,0.61244]
[1738278140231,3.16645973,3265.6,3265.3,3.2078]
[1738278140729,0.61244,3265.5,3265.3,3.82026]
[1738278141431,3.16645973,3265.6,3265.4,0.61243]
[1738278141432,3.77886973,3265.6,3265.4,0.61243]
[1738278141938,0.61242,3265.5,3265.3,3.82025]
[1738278142437,3.2078,3265.4,3265.0,0.5114]
[1738278142738,0.61257,3264.7,3264.6,0.5216]
[1738278142929,0.61265,3264.4,3264.1,0.99707]
[1738278143135,3.16645973,3264.2,3264.1,0.99709]
[1738278143437,3.16645973,3264.2,3264.1,0.61269]
[1738278144133,3.16645973,3264.2,3264.0,0.6127]
[1738278144329,3.16645973,3264.2,3264.0,0.61269]
[1738278144532,3.16645973,3264.2,3264.1,0.61269]
[1738278145423,3.16645973,3264.2,3263.8,3.2078]
[1738278145628,3.77913973,3264.2,3263.9,0.61271]
[1738278145831,3.77913973,3264.2,3263.8,3.2078]